fUST/lending_fUST_20250908
["ID","MTS","AMOUNT","RATE_DAILY","PERIOD"]
[384274206,1757311842784,-1017.23,0.00013698,2]
[384274208,1757311842793,-484.69629955,0.00013698,2]
[384274210,1757311842803,-480.0,0.00013698,2]
[384274212,1757311842812,-480.0,0.00013698,2]
[384274214,1757311842821,-480.0,0.00013698,2]
[384274216,1757311842830,-484.91859723,0.00013698,2]
[384274218,1757311842840,-481.1272992,0.00013698,2]
[384274220,1757311842850,-480.0,0.00013698,2]
[384274222,1757311842859,-485.50566934,0.00013698,2]
[384274224,1757311842868,-481.75966,0.00013698,2]
[384274226,1757311842877,-480.0,0.00013698,2]
[384274228,1757311842886,-480.0,0.00013698,2]
[384274230,1757311842896,-480.0,0.00013698,2]
[384274232,1757311842905,-480.0,0.00013698,2]
[384274234,1757311842914,-3313.55,0.00013698,2]
[384274236,1757311842923,-480.0,0.00013698,2]
[384274239,1757311842933,-480.0,0.00013698,2]
[384274241,1757311842943,-480.0,0.00013698,2]
[384274245,1757311842952,-1757.71,0.00013698,2]
[384274247,1757311842961,-627.90112269,0.00013698,2]
[384274249,1757311842970,-480.0,0.00013698,2]
[384274251,1757311842983,-480.0,0.00013698,2]
[384274253,1757311842992,-480.0,0.00013698,2]
[384274255,1757311843002,-480.0,0.00013698,2]
[384274257,1757311843011,-480.0,0.00013698,2]
[384274259,1757311843020,-480.27096398,0.00013698,2]
[384274261,1757311843030,-329.55049277,0.00013698,2]
[384274263,1757311843039,-480.0,0.00013698,2]
[384274266,1757311843049,-480.0,0.00013698,2]
[384274268,1757311843058,-523.37,0.00013698,2]
[384274270,1757311843068,-480.0,0.00013698,2]
[384274273,1757311843078,-480.0,0.00013698,2]
[384274274,1757311843087,-480.0,0.00013698,2]
[384274277,1757311843096,-482.22726583,0.00013698,2]
[384274278,1757311843110,-480.0,0.00013698,2]
[384274281,1757311843119,-480.0,0.00013698,2]
[384274282,1757311843129,-480.0,0.00013698,2]
[384274284,1757311843139,-480.0,0.00013698,2]
[384274286,1757311843150,-485.13015187,0.00013698,2]
[384274289,1757311843160,-487.43866919,0.00013698,2]
[384274292,1757311843169,-859.09,0.00013698,2]
[384274296,1757311843179,-1468.3,0.00013698,2]
[384274299,1757311843189,-483.75239138,0.00013698,2]
[384274302,1757311843198,-480.0,0.00013698,2]
[384274304,1757311843208,-480.0,0.00013698,2]
[384274307,1757311843218,-480.0,0.00013698,2]
[384274310,1757311843229,-480.0,0.00013698,2]
[384274312,1757311843239,-480.0,0.00013698,2]
[384274314,1757311843249,-480.0,0.00013698,2]
[384274327,1757311843366,-480.0,0.00013698,2]
[384274329,1757311843377,-480.0,0.00013698,2]
[384274331,1757311843387,-171.37992175,0.00013698,2]
[384274333,1757311843397,-480.0,0.00013698,2]
[384274335,1757311843407,-480.0,0.00013698,2]
[384274337,1757311843417,-480.0,0.00013698,2]
[384274339,1757311843427,-506.8303279,0.00013698,2]
[384274341,1757311843437,-480.0,0.00013698,2]
[384274343,1757311843448,-1178.79,0.00013698,2]
[384274345,1757311843457,-480.0,0.00013698,2]
[384274347,1757311843467,-498.35897834,0.00013698,2]
[384274349,1757311843480,-480.0,0.00013698,2]
[384274351,1757311843489,-483.51941576,0.00013698,2]
[384274353,1757311843499,-480.0,0.00013698,2]
[384274355,1757311843508,-485.92714942,0.00013698,2]
[384274357,1757311843518,-480.0,0.00013698,2]
[384274360,1757311843527,-480.0,0.00013698,2]
[384274362,1757311843537,-835.27,0.00013698,2]
[384274364,1757311843548,-480.0,0.00013698,2]
[384274366,1757311843557,-481.63466145,0.00013698,2]
[384274368,1757311843567,-480.0,0.00013698,2]
[384274370,1757311843577,-480.0,0.00013698,2]
[384274372,1757311843587,-485.90112576,0.00013698,2]
[384274374,1757311843596,-480.0,0.00013698,2]
[384274376,1757311843606,-480.0,0.00013698,2]
[384274378,1757311843615,-500.0,0.00013698,2]
[384274380,1757311843625,-687.341568,0.00013699,2]
[384274382,1757311843634,-570.751278,0.00013699,2]
[384274384,1757311843643,-4090.3562691,0.00013699,2]
[384274386,1757311843653,-10576.6745308,0.00013867,2]
[384274388,1757311843662,-4409.92318105,0.00013872,2]
[384274390,1757311843672,-160.0,0.00013936,2]
[384274392,1757311843682,-160.0,0.00013936,2]
[384274395,1757311843693,-846.71598105,0.00013936,2]
[384274398,1757311843702,-233.03190505,0.00013936,2]
[384274401,1757311843711,-160.0,0.00013936,2]
[384274403,1757311843721,-530.71506861,0.00013936,2]
[384274405,1757311843731,-203.26219058,0.00013936,2]
[384274407,1757311843741,-160.0,0.00013936,2]
[384274409,1757311843751,-217.62647793,0.00013936,2]
[384274411,1757311843760,-160.0,0.00013936,2]
[384274413,1757311843770,-150.0,0.00013948,2]
[384274415,1757311843780,-300.0,0.0001397,2]
[384274417,1757311843789,-300.0,0.0001397,2]
[384274419,1757311843799,-300.0,0.0001397,2]
[384274421,1757311843808,-300.0,0.0001397,2]
[384274423,1757311843818,-300.0,0.0001397,2]
[384274425,1757311843828,-300.0,0.0001397,2]
[384274428,1757311843840,-300.0,0.0001397,2]
[384274429,1757311843850,-300.0,0.0001397,2]
[384274432,1757311843860,-300.0,0.0001397,2]
[384274434,1757311843870,-300.0,0.0001397,2]
[384274436,1757311843880,-300.0,0.0001397,2]
[384274437,1757311843890,-300.0,0.0001397,2]
[384274440,1757311843901,-300.0,0.0001397,2]
[384274442,1757311843910,-300.0,0.0001397,2]
[384274444,1757311843920,-300.0,0.0001397,2]
[384274446,1757311843930,-600.0,0.0001397,2]
[384274448,1757311843940,-480.0,0.00013971,2]
[384274450,1757311843950,-480.0,0.00013972,2]
[384274452,1757311843960,-484.68852537,0.00013972,2]
[384274454,1757311843969,-480.0,0.00013972,2]
[384274456,1757311843980,-480.0,0.00013972,2]
[384274458,1757311843990,-480.0,0.00013972,2]
[384274460,1757311844000,-481.12341374,0.00013972,2]
[384274462,1757311844010,-491.04958491,0.00013972,2]
[384274464,1757311844020,-480.0,0.00013972,2]
[384274466,1757311844029,-480.0,0.00013972,2]
[384274468,1757311844039,-480.0,0.00013972,2]
[384274470,1757311844048,-480.0,0.00013972,2]
[384274473,1757311844058,-480.0,0.00013972,2]
[384274475,1757311844067,-480.0,0.00013972,2]
[384274477,1757311844077,-480.0,0.00013972,2]
[384274479,1757311844089,-475.46163094,0.00013972,2]
[384275552,1757312174887,-258.66104691,0.00013283,2]
[384275553,1757312174912,-258.66104691,0.00013553,2]
[384275554,1757312174937,-705.40143758,0.00013598,2]
[384275555,1757312174960,-300.0,0.00013696,2]
[384275556,1757312174982,-1200.0,0.00013697,2]
[384275557,1757312175004,-300.0,0.00013697,2]
[384275558,1757312175026,-300.0,0.00013697,2]
[384275559,1757312175048,-300.0,0.00013697,2]
[384275560,1757312175070,-1200.0,0.00013697,2]
[384275561,1757312175092,-300.0,0.00013697,2]
[384275562,1757312175114,-480.0,0.00013698,2]
[384275563,1757312175139,-11148.9946014,0.00013698,2]
[384275564,1757312175160,-480.0,0.00013698,2]
[384275565,1757312175184,-480.0,0.00013698,2]
[384275566,1757312175210,-494.14238598,0.00013698,2]
[384275567,1757312175232,-480.0,0.00013698,2]
[384275568,1757312175257,-480.0,0.00013698,2]
[384275569,1757312175283,-480.0,0.00013698,2]
[384275570,1757312175305,-480.0,0.00013698,2]
[384275571,1757312175329,-480.0,0.00013698,2]
[384275572,1757312175352,-495.10494597,0.00013698,2]
[384275573,1757312175375,-490.60583094,0.00013698,2]
[384275574,1757312175397,-480.0,0.00013698,2]
[384275575,1757312175421,-480.0,0.00013698,2]
[384275576,1757312175443,-480.0,0.00013698,2]
[384275577,1757312175467,-480.0,0.00013698,2]
[384275578,1757312175490,-480.0,0.00013698,2]
[384275579,1757312175513,-480.0,0.00013698,2]
[384275580,1757312175537,-480.0,0.00013698,2]
[384275581,1757312175560,-480.0,0.00013698,2]
[384275582,1757312175584,-480.0,0.00013698,2]
[384275583,1757312175607,-480.0,0.00013698,2]
[384275584,1757312175628,-480.0,0.00013698,2]
[384275585,1757312175651,-480.0,0.00013698,2]
[384275586,1757312175675,-3175.49,0.00013698,2]
[384275587,1757312175697,-480.0,0.00013698,2]
[384275588,1757312175720,-480.0,0.00013698,2]
[384275589,1757312175743,-480.0,0.00013698,2]
[384275590,1757312175768,-480.0,0.00013698,2]
[384275591,1757312175791,-480.0,0.00013698,2]
[384275592,1757312175815,-1407.12,0.00013698,2]
[384275593,1757312175839,-799.85,0.00013698,2]
[384275594,1757312175864,-480.0,0.00013698,2]
[384275595,1757312175888,-480.0,0.00013698,2]
[384275596,1757312175911,-480.0,0.00013698,2]
[384275597,1757312175935,-480.0,0.00013698,2]
[384275598,1757312175958,-480.0,0.00013698,2]
[384275599,1757312175982,-480.0,0.00013698,2]
[384275600,1757312176006,-480.0,0.00013698,2]
[384275601,1757312176032,-7666.31,0.00013698,2]
[384275602,1757312176056,-1874.14,0.00013698,2]
[384275603,1757312176080,-480.0,0.00013698,2]
[384275604,1757312176104,-480.0,0.00013698,2]
[384275605,1757312176126,-750.63,0.00013698,2]
[384275606,1757312176148,-480.0,0.00013698,2]
[384275607,1757312176175,-643.62,0.00013698,2]
[384275608,1757312176197,-480.0,0.00013698,2]
[384275609,1757312176224,-1123.36,0.00013698,2]
[384275610,1757312176247,-480.0,0.00013698,2]
[384275611,1757312176269,-480.0,0.00013698,2]
[384275612,1757312176294,-647.27,0.00013698,2]
[384275613,1757312176317,-515.76,0.00013698,2]
[384275614,1757312176340,-480.0,0.00013698,2]
[384275615,1757312176487,-343.670784,0.00013699,2]
[384275616,1757312176510,-294.13116511,0.00013872,2]
[384275617,1757312176533,-11870.1203702,0.0001388,2]
[384275618,1757312176555,-160.0,0.00013928,2]
[384275619,1757312176578,-160.0,0.00013932,2]
[384275620,1757312176601,-233.03190505,0.00013932,2]
[384275621,1757312176624,-846.71598105,0.00013932,2]
[384275622,1757312176646,-160.0,0.00013932,2]
[384275623,1757312176668,-530.71506861,0.00013932,2]
[384275624,1757312176690,-203.26219058,0.00013932,2]
[384275625,1757312176712,-217.62647793,0.00013932,2]
[384275626,1757312176738,-300.0,0.00013971,2]
[384275627,1757312176763,-300.0,0.00013971,2]
[384275628,1757312176790,-300.0,0.00013971,2]
[384275629,1757312176816,-300.0,0.00013971,2]
[384275630,1757312176842,-300.0,0.00013971,2]
[384275631,1757312176870,-300.0,0.00013971,2]
[384275632,1757312176897,-300.0,0.00013971,2]
[384275633,1757312176924,-300.0,0.00013971,2]
[384275634,1757312176950,-300.0,0.00013971,2]
[384275635,1757312176977,-300.0,0.00013971,2]
[384275636,1757312177003,-300.0,0.00013971,2]
[384275637,1757312177028,-300.0,0.00013971,2]
[384275638,1757312177053,-300.0,0.00013971,2]
[384275639,1757312177078,-300.0,0.00013971,2]
[384275640,1757312177103,-300.0,0.00013971,2]
[384275641,1757312177129,-600.0,0.00013971,2]
[384275642,1757312177152,-480.0,0.00013971,2]
[384275643,1757312177176,-480.0,0.00013971,2]
[384275644,1757312177200,-500.0,0.00013971,2]
[384275645,1757312177228,-255.18335104,0.00013971,2]
[384275646,1757312177253,-641.72164473,0.00013971,2]
[384275647,1757312177279,-499.42,0.00013971,2]
[384275648,1757312177304,-480.0,0.00013971,2]
[384275649,1757312177329,-974.85,0.00013971,2]
[384275650,1757312177354,-1684.47,0.00013971,2]
[384275651,1757312177378,-488.71256403,0.00013971,2]
[384275652,1757312177401,-480.0,0.00013971,2]
[384275653,1757312177427,-823.29,0.00013971,2]
[384275654,1757312177450,-480.0,0.00013971,2]
[384275655,1757312177473,-480.0,0.00013971,2]
[384275656,1757312177496,-1129.67,0.00013971,2]
[384275657,1757312177520,-800.47,0.00013971,2]
[384275658,1757312177544,-829.99,0.00013971,2]
[384275659,1757312177568,-480.0,0.00013971,2]
[384275660,1757312177591,-480.0,0.00013971,2]
[384275661,1757312177614,-484.87996182,0.00013971,2]
[384275662,1757312177636,-530.81,0.00013971,2]
[384275663,1757312177659,-480.0,0.00013971,2]
[384275664,1757312177682,-480.0,0.00013971,2]
[384275665,1757312177705,-480.0,0.00013971,2]
[384275666,1757312177727,-480.0,0.00013971,2]
[384275667,1757312177749,-480.0,0.00013971,2]
[384275668,1757312177781,-480.0,0.00013971,2]
[384275669,1757312177811,-480.0,0.00013971,2]
[384275670,1757312177838,-480.0,0.00013971,2]
[384275671,1757312177866,-490.75367812,0.00013971,2]
[384275672,1757312177894,-480.0,0.00013971,2]
[384275673,1757312177923,-480.0,0.00013971,2]
[384275674,1757312177952,-480.0,0.00013971,2]
[384275675,1757312177986,-545.71,0.00013971,2]
[384275676,1757312178013,-480.0,0.00013971,2]
[384275677,1757312178040,-380.96347784,0.00013972,2]
[384275678,1757312178071,-480.0,0.00013972,2]
[384275679,1757312178098,-489.29505687,0.00013972,2]
[384275680,1757312178123,-480.0,0.00013972,2]
[384275681,1757312178150,-483.99051101,0.00013972,2]
[384275682,1757312178180,-480.0,0.00013972,2]
[384275683,1757312178211,-480.0,0.00013972,2]
[384275684,1757312178241,-480.0,0.00013972,2]
[384275685,1757312178273,-480.0,0.00013972,2]
[384275686,1757312178299,-488.99738426,0.00013972,2]
[384275687,1757312178324,-230.52960708,0.00013972,2]
[384275688,1757312178355,-480.0,0.00013972,2]
[384275689,1757312178384,-480.0,0.00013972,2]
[384275690,1757312178411,-480.0,0.00013972,2]
[384275691,1757312178439,-480.0,0.00013972,2]
[384275692,1757312178466,-480.0,0.00013972,2]
[384275693,1757312178491,-480.0,0.00013972,2]
[384275694,1757312178518,-480.0,0.00013972,2]
[384275695,1757312178544,-490.39030135,0.00013972,2]
[384275696,1757312178570,-483.10791407,0.00013972,2]
[384275697,1757312178598,-480.0,0.00013972,2]
[384275698,1757312178624,-480.0,0.00013972,2]
[384275699,1757312178650,-480.0,0.00013972,2]
[384275700,1757312178677,-480.0,0.00013972,2]
[384275701,1757312178704,-480.0,0.00013972,2]
[384275702,1757312178731,-480.0,0.00013972,2]
[384275703,1757312178758,-480.0,0.00013972,2]
[384275704,1757312178784,-257.85562971,0.00013972,2]
[384275705,1757312178812,-480.0,0.00013972,2]
[384275706,1757312178840,-487.68773937,0.00013972,2]
[384275707,1757312178868,-480.0,0.00013972,2]
[384275708,1757312178897,-480.0,0.00013972,2]
[384275709,1757312178925,-480.0,0.00013972,2]
[384275710,1757312178953,-516.28,0.00013972,2]
[384275711,1757312178980,-480.0,0.00013972,2]
[384275712,1757312179008,-480.0,0.00013972,2]
[384275713,1757312179036,-480.4,0.00013972,2]
[384275714,1757312179063,-480.0,0.00013972,2]
[384275715,1757312179093,-480.0,0.00013972,2]
[384275716,1757312179121,-480.0,0.00013972,2]
[384275717,1757312179150,-480.0,0.00013972,2]
[384275718,1757312179178,-480.0,0.00013972,2]
[384275719,1757312179208,-516.12,0.00013972,2]
[384275720,1757312179397,-480.0,0.00013972,2]
[384275721,1757312179426,-480.0,0.00013972,2]
[384275722,1757312179450,-480.0,0.00013972,2]
[384275723,1757312179474,-480.0,0.00013972,2]
[384275724,1757312179497,-480.0,0.00013972,2]
[384275725,1757312179520,-480.0,0.00013972,2]
[384275726,1757312179542,-486.33919146,0.00013972,2]
[384275727,1757312179566,-359.61997172,0.00013972,2]
[384275728,1757312179588,-487.59079596,0.00013972,2]
[384275729,1757312179611,-480.0,0.00013972,2]
[384275730,1757312179634,-481.59780803,0.00013972,2]
[384275731,1757312179657,-480.0,0.00013972,2]
[384275732,1757312179678,-480.60064145,0.00013972,2]
[384275733,1757312179701,-483.04823149,0.00013972,2]
[384275734,1757312179724,-483.66661136,0.00013972,2]
[384275735,1757312179748,-480.0,0.00013972,2]
[384275736,1757312179772,-483.32762177,0.00013972,2]
[384275737,1757312179796,-480.0,0.00013972,2]
[384275738,1757312179819,-480.0,0.00013972,2]
[384275739,1757312179842,-480.0,0.00013972,2]
[384275740,1757312179864,-480.0,0.00013972,2]
[384275741,1757312179886,-480.0,0.00013972,2]
[384275742,1757312179909,-480.0,0.00013972,2]
[384275743,1757312179933,-480.0,0.00013972,2]
[384275744,1757312179956,-480.0,0.00013972,2]
[384275745,1757312179980,-480.0,0.00013972,2]
[384275746,1757312180003,-512.00104912,0.00013972,2]
[384275747,1757312180027,-480.0,0.00013972,2]
[384275748,1757312180049,-480.0,0.00013972,2]
[384275749,1757312180072,-480.0,0.00013972,2]
[384275750,1757312180096,-480.0,0.00013972,2]
[384275751,1757312180119,-480.0,0.00013972,2]
[384275752,1757312180141,-164.0370656,0.00013972,2]
[384275753,1757312180165,-480.0,0.00013972,2]
[384275754,1757312180188,-480.0,0.00013972,2]
[384275755,1757312180213,-480.0,0.00013972,2]
[384275756,1757312180237,-480.0,0.00013972,2]
[384275757,1757312180260,-480.0,0.00013972,2]
[384275758,1757312180285,-3175.49,0.00013972,2]
[384275759,1757312180310,-480.0,0.00013972,2]
[384275760,1757312180335,-480.0,0.00013972,2]
[384275761,1757312180358,-480.0,0.00013972,2]
[384275762,1757312180382,-480.0,0.00013972,2]
[384275763,1757312180406,-480.0,0.00013972,2]
[384275764,1757312180430,-1407.12,0.00013972,2]
[384275765,1757312180453,-799.85,0.00013972,2]
[384275766,1757312180476,-480.0,0.00013972,2]
[384275767,1757312180500,-480.0,0.00013972,2]
[384275768,1757312180524,-480.0,0.00013972,2]
[384275769,1757312180548,-480.0,0.00013972,2]
[384275770,1757312180571,-480.0,0.00013972,2]
[384275771,1757312180594,-480.0,0.00013972,2]
[384275772,1757312180618,-480.0,0.00013972,2]
[384275773,1757312180642,-7666.31,0.00013972,2]
[384275774,1757312180667,-1874.14,0.00013972,2]
[384275775,1757312180690,-480.0,0.00013972,2]
[384275776,1757312180715,-480.0,0.00013972,2]
[384275777,1757312180739,-416.89545011,0.00013972,2]
[384275778,1757312180763,-750.63,0.00013972,2]
[384275779,1757312180787,-480.0,0.00013972,2]
[384275780,1757312180810,-643.62,0.00013972,2]
[384275781,1757312180833,-480.0,0.00013972,2]
[384275782,1757312180859,-1123.36,0.00013972,2]
[384275783,1757312180884,-480.0,0.00013972,2]
[384275784,1757312180909,-480.0,0.00013972,2]
[384275785,1757312180933,-647.27,0.00013972,2]
[384275786,1757312180958,-515.76,0.00013972,2]
[384275787,1757312180983,-480.0,0.00013972,2]
[384275788,1757312181007,-500.0,0.00013973,2]
[384275789,1757312181030,-500.0,0.00013973,2]
[384275790,1757312181055,-500.0,0.00013973,2]
[384275791,1757312181078,-344.58919445,0.00013973,2]
[384275792,1757312181101,-500.0,0.00013973,2]
[384275793,1757312181126,-500.0,0.00013973,2]
[384275794,1757312181151,-1000.0,0.00013982,2]
[384275795,1757312181174,-1000.0,0.00013982,2]
[384275796,1757312181198,-901.92360879,0.00013982,2]
[384275797,1757312181224,-151.0,0.00013982,2]
[384275798,1757312181247,-151.0,0.00013982,2]
[384275799,1757312181272,-155.13384175,0.00013982,2]
[384275800,1757312181301,-151.0,0.00013982,2]
[384275801,1757312181325,-151.0,0.00013982,2]
[384275802,1757312181348,-151.0,0.00013982,2]
[384275803,1757312181375,-151.0,0.00013982,2]
[384275804,1757312181397,-151.0,0.00013982,2]
[384275805,1757312181421,-151.0,0.00013982,2]
[384275806,1757312181444,-151.0,0.00013982,2]
[384275807,1757312181467,-151.0,0.00013982,2]
[384275808,1757312181490,-151.0,0.00013982,2]
[384275809,1757312181513,-151.0,0.00013982,2]
[384275810,1757312181536,-151.0,0.00013982,2]
[384275811,1757312181559,-151.0,0.00013982,2]
[384275812,1757312181582,-250.0,0.00013982,2]
[384275813,1757312181604,-151.0,0.00013982,2]
[384275814,1757312181627,-151.0,0.00013982,2]
[384275815,1757312181651,-250.0,0.00013982,2]
[384275816,1757312181673,-151.0,0.00013982,2]
[384275817,1757312181696,-250.0,0.00013982,2]
[384275818,1757312181719,-151.0,0.00013982,2]
[384275819,1757312181745,-250.0,0.00013982,2]
[384275820,1757312181856,-151.0,0.00013982,2]
[384275821,1757312181902,-250.0,0.00013982,2]
[384275822,1757312181926,-2030.296672,0.00013982,2]
[384275823,1757312181948,-151.0,0.00013982,2]
[384275824,1757312181972,-250.0,0.00013982,2]
[384275825,1757312181996,-151.0,0.00013982,2]
[384275826,1757312182020,-250.0,0.00013982,2]
[384275827,1757312182044,-250.0,0.00013982,2]
[384275828,1757312182066,-151.0,0.00013982,2]
[384275829,1757312182090,-250.0,0.00013982,2]
[384275830,1757312182112,-151.0,0.00013982,2]
[384275831,1757312182135,-250.0,0.00013982,2]
[384275832,1757312182158,-151.0,0.00013982,2]
[384275833,1757312182182,-250.0,0.00013982,2]
[384275834,1757312182207,-155.64538639,0.00013982,2]
[384275835,1757312182231,-250.0,0.00013982,2]
[384275836,1757312182255,-250.0,0.00013982,2]
[384275837,1757312182279,-220.77189362,0.00013989,2]
[384275838,1757312182303,-248.92750032,0.00013989,2]
[384275839,1757312182326,-151.0,0.0001399,2]
[384275840,1757312182349,-22755.49340509,0.0001399,2]
[384275841,1757312182396,196.97680933,0.0001315,2]
[384275842,1757312182568,250.0,0.00012802,2]
[384275852,1757312853154,-300.0,0.0001329,2]
[384275853,1757312853177,-300.0,0.00013695,2]
[384275854,1757312853199,-300.0,0.00013696,2]
[384275855,1757312853219,-300.0,0.00013696,2]
[384275856,1757312853240,-300.0,0.00013696,2]
[384275857,1757312853262,-300.0,0.00013696,2]
[384275858,1757312853285,-1200.0,0.00013696,2]
[384275859,1757312853308,-480.0,0.00013698,2]
[384275860,1757312853330,-480.0,0.00013698,2]
[384275861,1757312853352,-480.0,0.00013698,2]
[384275862,1757312853375,-480.0,0.00013698,2]
[384275863,1757312853396,-480.0,0.00013698,2]
[384275864,1757312853419,-480.0,0.00013698,2]
[384275865,1757312853445,-480.0,0.00013698,2]
[384275866,1757312853474,-480.0,0.00013698,2]
[384275867,1757312853495,-480.0,0.00013698,2]
[384275868,1757312853518,-481.35047586,0.00013698,2]
[384275869,1757312853541,-404.18818819,0.00013698,2]
[384275870,1757312853561,-571.030952,0.00013699,2]
[384275871,1757312853582,-617.2262579,0.00013828,2]
[384275872,1757312853603,-235.30493212,0.0001387,2]
[384275873,1757312853625,-233.80419965,0.00013882,2]
[384275874,1757312853649,-4903.98765314,0.0001389,2]
[384275875,1757312873173,6755.02551942,0.00013751,2]
[384275930,1757313035272,-300.0,0.00013499,2]
[384275931,1757313035282,-300.0,0.00013499,2]
[384275932,1757313035292,-1200.0,0.00013499,2]
[384275933,1757313035302,-2824.983028,0.000135,2]
[384275934,1757313035313,-2400.0,0.000135,2]
[384275935,1757313035326,-36194.51953658,0.000135,2]
[384275936,1757313035336,-540.07297561,0.00013513,2]
[384275937,1757313035345,-264.0,0.00013613,2]
[384275938,1757313035355,-300.0,0.0001375,2]
[384275939,1757313035364,-188.24394568,0.0001379,2]
[384275940,1757313035374,-188.24394566,0.00013858,2]
[384275941,1757313035383,-480.0,0.00013889,2]
[384275942,1757313035392,-480.0,0.00013889,2]
[384275943,1757313035402,-498.61,0.00013889,2]
[384275944,1757313035411,-954.23,0.00013889,2]
[384275945,1757313035421,-480.0,0.00013889,2]
[384275946,1757313035430,-1664.04,0.00013889,2]
[384275947,1757313035440,-480.0,0.00013889,2]
[384275948,1757313035450,-480.0,0.00013889,2]
[384275949,1757313035459,-480.0,0.00013889,2]
[384275950,1757313035469,-480.0,0.00013889,2]
[384275951,1757313035478,-480.0,0.00013889,2]
[384275952,1757313035488,-480.0,0.00013889,2]
[384275953,1757313035497,-480.0,0.00013889,2]
[384275954,1757313035507,-1570.52123952,0.0001389,2]
[384275964,1757313038865,-480.0,0.00013889,2]
[384275965,1757313038876,-15957.44529067,0.0001389,2]
[384275966,1757313038887,-188.24394566,0.00013927,2]
[384275967,1757313038898,-417.15472785,0.00013928,2]
[384275968,1757313038909,-203.26219058,0.00013928,2]
[384275969,1757313038918,-217.62647793,0.00013928,2]
[384275970,1757313038927,-160.0,0.00013933,2]
[384275971,1757313038937,-2154.0,0.0001395,2]
[384275972,1757313038947,-634.0,0.0001395,2]
[384275973,1757313038957,-409.406,0.0001395,2]
[384275974,1757313038966,-3596.17798557,0.00013963,2]
[384275975,1757313038976,-160.0,0.00013967,2]
[384275976,1757313038985,-233.03190505,0.00013967,2]
[384275977,1757313038995,-846.71598105,0.00013967,2]
[384275978,1757313039005,-530.71506861,0.00013967,2]
[384275979,1757313039016,-174.24925022,0.0001397,2]
[384275980,1757313039027,-482.73447172,0.00013971,2]
[384275981,1757313039037,-480.0,0.00013971,2]
[384275982,1757313039046,-487.31083666,0.00013971,2]
[384275983,1757313039057,-480.0,0.00013971,2]
[384275984,1757313039066,-480.0,0.00013971,2]
[384275985,1757313039076,-480.0,0.00013971,2]
[384275986,1757313039087,-480.0,0.00013971,2]
[384275987,1757313039098,-372.37620143,0.00013971,2]
[384275988,1757313039109,-480.0,0.00013971,2]
[384275989,1757313039120,-492.27639507,0.00013971,2]
[384275990,1757313039130,-480.0,0.00013971,2]
[384275991,1757313039139,-499.35467289,0.00013971,2]
[384275992,1757313039149,-480.0,0.00013971,2]
[384275993,1757313039158,-480.0,0.00013971,2]
[384275994,1757313039168,-480.0,0.00013971,2]
[384275995,1757313039177,-480.0,0.00013971,2]
[384275996,1757313039187,-206.47811632,0.00013971,2]
[384275997,1757313039196,-480.0,0.00013971,2]
[384275998,1757313039205,-480.0,0.00013971,2]
[384275999,1757313039214,-480.0,0.00013971,2]
[384276000,1757313039224,-480.0,0.00013971,2]